Cogmind - Beta 12 *** ADVENTURER MODE // 2023.05.07 @ 17:09:17 Player: Deep Beef Result: Destroyed by D-53 Grenadier with Mini Grenade Launcher Performance ------------- Evolutions (0) 0 Regions Visited (4) 800 Robots Destroyed (24) 120 Value Destroyed (441) 441 Prototype IDs (4) 80 Alien Tech Used (0) 0 Bonus (300) 300 TOTAL SCORE: 1741 Bonus ------- Aligned with FarCom 300 Cogmind --------- Core Integrity 0/250 Matter 243/300 Energy 100/100 System Corruption 2% Temperature Cool (0) Movement Core (400) Ox7 Location -9/Mines Parts ------- > --- POWER (1) -------- (None) > --- PROPULSION (2) --- (None) > --- UTILITY (2) ------ Large Storage Unit > --- WEAPON (2) ------- Shotgun > --- INVENTORY (15) --- Light Fission Core Aluminum Leg Aluminum Leg Sensor Array Seismic Detector 0b10 Alert Chip Light Armor Plating Thief Drone Bay EMP Blaster Rocket Launcher Mining Laser Peak State ------------ > --- POWER ------------ Ion Engine > --- PROPULSION ------- Aluminum Leg Aluminum Leg > --- UTILITY ---------- Large Storage Unit Light Armor Plating > --- WEAPON ----------- EM Pulse Gun Shotgun > --- INVENTORY -------- Light Ion Engine Light Fission Core Aluminum Leg Aluminum Leg Sensor Array 0b10 Alert Chip Light Armor Plating Thief Drone Bay Shotgun Shotgun EMP Blaster Rocket Launcher Mining Laser [Rating: 11] Favorites ----------- Power Ion Engine Engine Ion Engine Propulsion Aluminum Leg Leg Aluminum Leg Utility Light Armor Plating Storage Large Storage Unit Protection Light Armor Plating Weapon Shotgun Energy Gun EM Pulse Gun Ballistic Gun Shotgun Special Weapon Mining Laser Build | -11 -10 -10 -10 -9 ------- Run | Jun Mat Min Exi Min Slots Evolved . | . . . . . Power . | . . . . . Propulsion . | . . . . . Utility . | . . . . . Weapon . | . . . . . Parts Attached 16 | 6 7 . . 3 Power 2 | 1 . . . 1 Engine 2 | 1 . . . 1 Core . | . . . . . Reactor . | . . . . . Propulsion 3 | 2 1 . . . Treads . | . . . . . Leg 3 | 2 1 . . . Wheel . | . . . . . Hover . | . . . . . Flight . | . . . . . Utility 3 | 1 2 . . . Device . | . . . . . Storage 2 | 1 1 . . . Processor . | . . . . . Hackware . | . . . . . Protection 1 | . 1 . . . Artifact . | . . . . . Weapon 8 | 2 4 . . 2 Energy Gun 1 | . 1 . . . Energy Cannon . | . . . . . Ballistic Gun 5 | 2 1 . . 2 Ballistic Cannon . | . . . . . Launcher . | . . . . . Special Weapon 2 | . 2 . . . Impact Weapon . | . . . . . Slashing Weapon . | . . . . . Piercing Weapon . | . . . . . Special Melee Weapon . | . . . . . Unidentified Prototypes . | . . . . . Parts Lost 7 | . . . . 7 Power 1 | . . . . 1 Propulsion 2 | . . . . 2 Utility 1 | . . . . 1 Weapon 3 | . . . . 3 Highest Loss Streak 7 | . . . . 7 To Critical Strikes 1 | . . . . 1 Average Slot Usage (%) 98 | . 95 100 100 96 Engine 13 | . 14 14 14 13 Leg 27 | . 28 28 28 26 Storage 14 | . 14 14 14 14 Protection 12 | . 10 14 14 12 Energy Gun 11 | . 5 14 14 13 Ballistic Gun 15 | . 18 14 14 14 Special Weapon 1 | . 3 . . . Naked Turns . | . . . . . Heaviest Build 33 | 13 33 33 33 33 Greatest Support 20 | 20 20 20 20 20 Greatest Overweight (x) 8 | 2 1 1 1 8 Average Overweight (x) . | . . 1 1 1 Largest Inventory Capacity 15 | 8 15 15 15 15 Average Capacity 13 | 6 9 15 15 15 Most Carried 14 | 5 8 11 13 14 Average Carried 9 | 2 6 9 12 12 Final Capacity 15 | 8 15 15 15 15 Final Carried 13 | 2 8 11 13 11 Class Distribution -------------------- 100% | Mutant Dominant Class ---------------- Mutant | -10/Materials Mutant | -10/Mines Mutant | -10/Exiles Mutant | -9/Mines Resources | -11 -10 -10 -10 -9 ----------- Run | Jun Mat Min Exi Min Matter Collected 599 | 260 200 125 . 14 Remotely . | . . . . . Salvage Created 652 | . 409 224 . 19 Parts 51 | . 23 28 . . Haulers Intercepted . | . . . . . Recyclers Shooed 1 | . 1 . . . Parts Field Recycled . | . . . . . Retrieved Matter . | . . . . . Parts Self-Destructed . | . . . . . Prevented . | . . . . . Kills | -11 -10 -10 -10 -9 ------- Run | Jun Mat Min Exi Min Combat Hostiles Destroyed 20 | . 8 10 . 2 Guns 17 | . 8 7 . 2 AOE 3 | . . 3 . . Classes Destroyed 6 | . 4 1 . 1 Worker 2 | . 2 . . . Tunneler 1 | . . 1 . . Watcher 3 | . 3 . . . Swarmer 11 | . 3 8 . . Grunt 7 | . 5 2 . . Assembled 2 | . . . . 2 Best Kill Streak 4 | . 4 3 . 2 Combat Bots Only 3 | . 2 3 . 2 Max Kills in Single Turn 2 | . 2 2 . 1 Gunslinging 1 | . . 1 . . Exploded 2 | . . 2 . . Melee . | . . . . . Uniques/NPCs Destroyed . | . . . . . Combat | -11 -10 -10 -10 -9 -------- Run | Jun Mat Min Exi Min Damage Taken 1113 | . 214 247 . 652 Core 283 | . 75 37 . 171 Absorbed by Shields . | . . . . . Core Remaining (%) 100 | 100 . . . . Volleys Fired 63 | . 42 15 . 6 Largest 2 | . 2 2 . 2 Hottest 100 | . 100 63 . 63 Shots Fired 119 | . 77 30 . 12 Gun 112 | . 70 30 . 12 Cannon . | . . . . . Launcher . | . . . . . Special 7 | . 7 . . . Kinetic 88 | . 62 15 . 11 Thermal 7 | . 7 . . . Explosive . | . . . . . Electromagnetic 24 | . 8 15 . 1 Robot Hit Streak 10 | . 10 9 . 4 Robot Miss Streak 3 | . 3 2 . 3 Penetration Max . | . . . . . Secondary Targets 2 | . 1 1 . . Max Gunslinging Chain 1 | . 1 1 . . Shots Hit Robots 81 | . 49 23 . 9 Core Hits 38 | . 22 13 . 3 Critical Kills . | . . . . . Critical Parts Destroyed 1 | . . . . 1 Critical Strikes 1 | . . . . 1 Destroy 1 | . . . . 1 Melee Attacks . | . . . . . Impact . | . . . . . Slashing . | . . . . . Piercing . | . . . . . Sneak Attacks . | . . . . . Combat Hostiles . | . . . . . Follow-up Attacks . | . . . . . Damage Inflicted 1132 | . 591 397 . 144 Guns 1009 | . 591 274 . 144 Cannons . | . . . . . Explosions 123 | . . 123 . . Melee . | . . . . . Ramming . | . . . . . Kinetic 796 | . 486 166 . 144 Thermal 123 | . . 123 . . Explosive . | . . . . . Electromagnetic 213 | . 105 108 . . Impact . | . . . . . Slashing . | . . . . . Piercing . | . . . . . Highest Corruption 2 | . 2 2 2 2 Average Corruption 1 | . 1 2 2 2 Corruption Purged . | . . . . . Corruption Blocked . | . . . . . Effects 32 | . 4 15 4 9 Message Errors 8 | . 1 3 1 3 Matter Fused 11 | . 1 8 . 2 Heat Flow Errors 2 | . 1 1 . . Energy Discharges 4 | . . 2 . 2 Data Loss (minor) 4 | . . 1 2 1 Alerts 3 | . 1 . 1 1 Overload Shots . | . . . . . Overflow Damage . | . . . . . Projectiles . | . . . . . Explosions . | . . . . . Melee . | . . . . . Knockbacks . | . . . . . Impact . | . . . . . Kinetic . | . . . . . Secondary . | . . . . . Self-Inflicted Damage 53 | . . 53 . . Shots 2 | . . 2 . . Rammed . | . . . . . Targets Rammed . | . . . . . Kicked . | . . . . . Crushed . | . . . . . Highest Temperature 253 | . 253 190 . 43 Average Temperature 51 | . 79 39 . 16 Received Heat Transfer 535 | . 105 30 . 400 Siege Activations . | . . . . . Robots Corrupted 1 | . 1 . . . Combat Hostiles . | . . . . . Parts Fried 1 | . 1 . . . Impact Corruptions . | . . . . . Robots Melted . | . . . . . Combat Hostiles . | . . . . . Parts Melted . | . . . . . Heat Transferred 100 | . . 100 . . Parts Sabotaged . | . . . . . Parts Stolen . | . . . . . Parts Stripped . | . . . . . Power Chain Reactions 2 | . . 2 . . Missiles Intercepted . | . . . . . Alert | -11 -10 -10 -10 -9 ------- Run | Jun Mat Min Exi Min Peak Influence 224 | . 224 185 . 15 Initial 1 | . . 1 . . Average 72 | . 94 77 . . Maximum Alert Level 1 | . 1 . . . Low Security (%) 92 | 100 79 100 . 100 Level 1 7 | . 20 . . . Level 2 . | . . . . . Level 3 . | . . . . . Level 4 . | . . . . . Level 5 . | . . . . . High Security . | . . . . . Max Security . | . . . . . Squads Dispatched 2 | . 1 . . 1 Investigation 1 | . 1 . . . Extermination . | . . . . . Reinforcement . | . . . . . Assault 1 | . . . . 1 Garrison . | . . . . . Intercept . | . . . . . Searches Triggered . | . . . . . Construction Impeded . | . . . . . Haulers Reinforced . | . . . . . Active Scanning Responses . | . . . . . Cargo Convoy Interrupts . | . . . . . Stealth | -11 -10 -10 -10 -9 --------- Run | Jun Mat Min Exi Min Distress Signals 2 | . 2 . . . Communications Jammed . | . . . . . Distress Signals . | . . . . . Times Spotted 47 | . 12 12 . 23 Peak Tracking Total 20 | . 3 3 . 20 Tactical Retreats 3 | . . 2 . 1 Traps | -11 -10 -10 -10 -9 ------- Run | Jun Mat Min Exi Min Traps Triggered 3 | . 3 . . . Indirectly . | . . . . . Trap Hack Attempts . | . . . . . Triggered . | . . . . . Disarmed . | . . . . . Reprogrammed . | . . . . . Reused . | . . . . . Traps Extracted . | . . . . . Installed . | . . . . . Triggered . | . . . . . Machines | -11 -10 -10 -10 -9 ---------- Run | Jun Mat Min Exi Min Machines Disabled 1 | . . 1 . . Max in Single Turn 1 | . . 1 . . Machines Repaired . | . . . . . Machines Sabotaged . | . . . . . Overloaded Fab Kills . | . . . . . Hacking | -11 -10 -10 -10 -9 --------- Run | Jun Mat Min Exi Min Machines Accessed 8 | . 4 2 2 . Terminals 4 | . 4 . . . Fabricators . | . . . . . Repair Stations . | . . . . . Recycling Units . | . . . . . Scanalyzers . | . . . . . Garrison Access . | . . . . . Total Hacks 33 | . 18 2 13 . Successful 28 | . 13 2 13 . Failed 5 | . 5 . . . Catastrophic . | . . . . . Database Lockouts . | . . . . . Manual 11 | . 10 . 1 . Terminals 18 | . 18 . . . Fabricators . | . . . . . Repair Stations . | . . . . . Recycling Units . | . . . . . Scanalyzers . | . . . . . Garrison Access . | . . . . . Terminal Hacks 22 | . 7 2 13 . Record 13 | . . . 13 . Prototype ID Bank 2 | . 2 . . . Open Door 2 | . . 2 . . Branch Access Points 2 | . 2 . . . Hauler Manifests 1 | . 1 . . . Zone Layout 2 | . 2 . . . Fabricator Hacks . | . . . . . Repair Station Hacks . | . . . . . Recycling Unit Hacks . | . . . . . Scanalyzer . | . . . . . Garrison Access Hacks . | . . . . . Unauthorized Hacks 6 | . 6 . . . Terminals 6 | . 6 . . . Assimilate 2 | . 2 . . . Botnet 4 | . 4 . . . Fabricators . | . . . . . Repair Stations . | . . . . . Recycling Units . | . . . . . Scanalyzers . | . . . . . Garrison Access . | . . . . . Data Cores Recovered . | . . . . . Used . | . . . . . Hacking Detections 3 | . 3 . . . Full Trace Events 1 | . 1 . . . Feedback Events . | . . . . . Feedback Blocked . | . . . . . Robot Schematics Acquired . | . . . . . Robots Built . | . . . . . Authchips . | . . . . . Time . | . . . . . Total Robot Build Rating . | . . . . . Part Schematics Acquired . | . . . . . Parts Built . | . . . . . Authchips . | . . . . . Time . | . . . . . Total Part Build Rating . | . . . . . Parts Repaired . | . . . . . Time . | . . . . . Parts Recycled . | . . . . . Recycled Matter . | . . . . . Retrieved Matter . | . . . . . Retrieved Components . | . . . . . Parts Scanalyzed . | . . . . . Part Schematics Acquired . | . . . . . Parts Damaged . | . . . . . Bothacking | -11 -10 -10 -10 -9 ------------ Run | Jun Mat Min Exi Min Used RIF Installer . | . . . . . Robots Hacked . | . . . . . Non-combat . | . . . . . Combat . | . . . . . Robot Hacks Applied . | . . . . . Relay Couplers Released . | . . . . . Fabnet Peak Effective % . | . . . . . Robots Rewired . | . . . . . Allies Hacked . | . . . . . Hacks Repelled . | . . . . . Allies | -11 -10 -10 -10 -9 -------- Run | Jun Mat Min Exi Min Total Allies 1 | . . . . 1 Largest Group 1 | . . . . 1 Highest-Rated Group 31 | . . . . 31 Highest-Rated Ally 31 | . . . . 31 Total Orders . | . . . . . Ally Attacks 4 | . . . . 4 Total Damage 41 | . . . . 41 Kills . | . . . . . Allies Corrupted . | . . . . . Allies Melted . | . . . . . Intel | -11 -10 -10 -10 -9 ------- Run | Jun Mat Min Exi Min Robot Analysis Total . | . . . . . Derelict Logs Recovered 4 | . . 2 . 2 Drone Launches . | . . . . . Drone Recoveries . | . . . . . Exploration | -11 -10 -10 -10 -9 ------------- Run | Jun Mat Min Exi Min Turns Passed 2927 | 47 877 1232 453 318 Spaces Moved 1557 | 37 518 612 238 152 Core 23 | 22 . . . 1 Treads . | . . . . . Legs 1534 | 15 518 612 238 151 Wheels . | . . . . . Hover . | . . . . . Flight . | . . . . . Fastest Speed 50 | 50 120 190 190 190 Average Speed 169 | 89 133 190 190 195 Slowest Speed 450 | 150 190 190 190 450 Overloaded Moves . | . . . . . Propulsion Burnouts . | . . . . . Robots Hopped . | . . . . . Cave-ins Triggered . | . . . . . Exploration Rate (%) 56 | 4 67 100 61 51 Regions Visited 4 Branch Regions 3 Pre-discovered Areas 1 | . . . 1 . Known Exits Taken 1 | . 1 . . . Unknown Exits Taken 3 | 1 . 1 1 . Scrap Searched 3 | . . 2 . 1 Spaces Dug 1 | . 1 . . . Terrain Destroyed 10 | . 1 9 . . Melee . | . . . . . Projectile 1 | . 1 . . . AOE 9 | . . 9 . . Terrain Rammed . | . . . . . Walls Destroyed . | . . . . . Machines Disabled . | . . . . . Actions | -11 -10 -10 -10 -9 --------- Run | Jun Mat Min Exi Min Total 1734 | 49 630 652 239 164 Wait 75 | 2 49 23 . 1 Move 1553 | 36 517 611 237 152 Hop . | . . . . . Pick Up 21 | 5 10 3 2 1 Fast Attach 3 | 3 . . . . Attach 6 | 3 1 . . 2 Detach . | . . . . . Swap 7 | . 6 . . 1 Drop 6 | . 5 . . 1 Fire 63 | . 42 15 . 6 Melee . | . . . . . Ram . | . . . . . Kick . | . . . . . Crush . | . . . . . Escape Stasis . | . . . . . Rewire . | . . . . . Trap . | . . . . . Miscellaneous . | . . . . . Route ------- -11/Junkyard -10/Materials (discovered 2 exits: [*Mat] / *Min) -10/Mines (discovered 3 exits: [*Mat x2] / *Exi) -10/Exiles -9/Mines History --------- Turn | Location | Event 33 | -11/Junkyard | Discovered new exit (range 12) 48 | -11/Junkyard | Entered Materials 173 | -10/Materials | Discovered new exit (range 16) 308 | -10/Materials | Build established: Mutant 436 | -10/Materials | Identified exit to Mines 436 | -10/Materials | Discovered new exit (range 23) 925 | -10/Materials | Entered Mines 1015 | -10/Mines | Discovered new exit (range 5) 1114 | -10/Mines | Met a Derelict who couldn't figure out how to use a Trap Extractor 1255 | -10/Mines | Discovered new exit (range 4) 1399 | -10/Mines | Deemed a non-threat by the Exiles lab entrance 1399 | -10/Mines | Discovered new exit (range 5) 1535 | -10/Mines | Found the Drone Emporium 1542 | -10/Mines | Found Prototype Device 1626 | -10/Mines | Learned Materials terminal intel 1697 | -10/Mines | Received a Rocket Launcher from a helpful Derelict 1802 | -10/Mines | Learned location of 1 exit from Materials 2157 | -10/Mines | Entered Exiles 2214 | -10/Exiles | Met 8R-AWN 2244 | -10/Exiles | Met EX-HEX 2303 | -10/Exiles | Met EX-BIN 2348 | -10/Exiles | Aligned with FarCom system 2350 | -10/Exiles | Given EX-Vault access code 2398 | -10/Exiles | Opened EX-Vault 2405 | -10/Exiles | Found Prototype Processor 2444 | -10/Exiles | Warned to stay clear of 0b10 Research branches 2476 | -10/Exiles | Exiles lab attacked by MAIN.C 2511 | -10/Exiles | Learned location of Zion (-7) 2585 | -10/Exiles | Discovered new exit (range 14) 2610 | -10/Exiles | Left Exiles lab with 0b10 Alert Chip 2610 | -10/Exiles | Entered Mines 2661 | -9/Mines | Learned 8 Materials zone layouts 2829 | -9/Mines | Met a Derelict testing a Signal Generator 2830 | -9/Mines | Learned Materials emergency access door positions 2868 | -9/Mines | Assembled infested the area 2894 | -9/Mines | Core integrity fell below 50% 2903 | -9/Mines | Found a hidden stash of uninstalled traps 2924 | -9/Mines | Core integrity fell below 20% 2928 | -9/Mines | Destroyed by D-53 Grenadier with Mini Grenade Launcher Last Messages --------------- Destroyed Asb. F-torch. D-53 Grenadier unfolds itself. as-82254 destroyed. System corrupted: Matter fused (-7). Destroyed Asb. F-torch. as-87686 destroyed. as-44248 destroyed. as-80399 destroyed. as-75216 destroyed. as-11021 destroyed. as-36983 destroyed. as-45646 destroyed. as-84593 destroyed. as-10396 destroyed. The unstable cave ceiling collapses. as-40125 destroyed. Aluminum Leg destroyed. as-93835 destroyed. Critical hit (Destroy). Shotgun destroyed. Map ----- +----------------------------------------------------+ | ??????????????????????????????? ???????????? | | ??????????????????????????????? ???????????? | | ??????????????????????????????? ???????????? | | ??????????????????????????????? ???????????? | | ???????????????????????????????? ???????????? | | ???????????????????????????????? ???????????? | | ???????????????????????????????? ##?###?????? | | ????????????????????????????????# %!## #?????? | | ?####???????????????????????????# ??????? | | # ##??????????????????????????# ???????? | | ###??????????s???????###???# ???????? | | #?????????????????# # # ## ????????? | | ?????????????????? % ?????????? | | ??????????????????? #?????????? | | ??????????????????? # ##????????? | | # ???????????????????? # =###??????? | | # ???????????????????## dd ?## = ##?????? | | # #????????????????#### ???# =%= #?????? | | # #????????????????# # ???## % #?????? | | # #???????????????## ???## ##?????? | | # #??????????????## a ##### #??????? | | # #??????????????# ## ##??????? | | # #???????????????# ! #######?? | | # #???????????????# % #?? | | #???????????????# a a%* #?? | | #???????????????# @ # % #### #?? | | ###???????????????## ### ##??# #?? | | ######?????????????# #?## ###### #?? | | #?????????????##### ###### ## #?? | | #### #????????????????# ## ### #### #?? | | #??# #????????????????# ## ## ### #??# #?? | | ##??# #????????????????# ## #?# #?? | | ????# ###??????????????# ########### #?? | | ?#### #??????????????## ##??????# #?? | | ?# #???????????????### ##????# #?? | | ?# #?????####????????## #??? &#?? | | ?# #????## ##??####### #?? ##?? | | ?## #???## #### ## #?# ###??? | | ??# ##??# #?# #?????? | | ??# #### #? #??????? | | ??# """ ## #???????? | | ??## """ ##### #????????? | | ???##### """ ##???? #?????????? | | ???????## ##??????????????????? | | ????????## ##### ##???????????????????? | | ?????????####???## ##???????????????????? | | ?????????????????# ####????????????????? | | ?????????????????# ##???????????????? | | ?????????????????##### ##??????????????? | | ?????????????????????## ##?????????????? | +----------------------------------------------------+ Best States ------------- Heat Dissipation 25 Energy Generation 10 Energy Capacity 250 Matter Stores 300 Matter Capacity 300 Sight Range 16 Terrain Scan Density 10 Armor Coverage 150 Resistance: KI 20 Resistance: TH 20 Resistance: EX 20 Resistance: EM 20 Resistance: I 20 Resistance: S 20 Resistance: P 20 Evasion (%) 55 Offensive Hacking 10 Item Schematics ----------------- None Robot Schematics ------------------ None Fabricated ------------ Nothing Alien Tech Used ----------------- None Achievements -------------- None Challenges ------------ None Game ------ Seed NuclearEnergyAmplifier Manual? 0 Play Time 00:24:24 Cumulative 111.2 hours Start 2023.05.07 @ 16:44:37 End 2023.05.07 @ 17:09:17 Sessions 1 Manual Loads 0 Difficulty Adventurer Special Mode None Game No. 106 Rogue 72 Adventurer 34 Explorer 0 Win Type - Total 0 Types 0/0/0/0/0/0/0/0/0 Lore% 40 Gallery% 52 Achievement% 39 Wizard Run 0 Options --------- ASCII 0 Keyboard 0 Movement Mouse Keybinds 0 Fullscreen 1 Font 12/Smallcaps Map View 83x54 Tactical HUD 0 Map Filters NONE Filters NONE Steam 1 RUN: 6b7ac1a5-b1d9-4c42-a6b4-129b8f96f7e8